[Event "*** SCC Grand Prix: Titled Tuesday Blitz"]
[Site "Chess.com"]
[Date "2020.06.09"]
[Round "9"]
[White "attack2mateU"]
[Black "blitzking1729"]
[Result "1-0"]
[WhiteElo "2699"]
[BlackElo "2551"]
[TimeControl "180+1"]
[EndTime "10:47:21 PDT"]
[Termination "attack2mateU won by resignation"]

1. e4 {[%clk 0:03:00.9]} 1... c6 {[%clk 0:02:58.7]} 2. Nc3 {[%clk 0:03:00]} 2...
d5 {[%clk 0:02:57.8]} 3. Nf3 {[%clk 0:03:00.5]} 3... Bg4 {[%clk 0:02:54.8]} 4.
h3 {[%clk 0:02:58.8]} 4... Bxf3 {[%clk 0:02:54.8]} 5. Qxf3 {[%clk 0:02:58.5]}
5... e6 {[%clk 0:02:55.7]} 6. Be2 {[%clk 0:02:56.8]} 6... Nf6 {[%clk 0:02:54.6]}
7. O-O {[%clk 0:02:57.1]} 7... d4 {[%clk 0:02:51.8]} 8. Nb1 {[%clk 0:02:56.4]}
8... e5 {[%clk 0:02:47.9]} 9. Qg3 {[%clk 0:02:48.4]} 9... Nbd7 {[%clk
0:02:47.1]} 10. d3 {[%clk 0:02:47.9]} 10... g6 {[%clk 0:02:37.2]} 11. f4 {[%clk
0:02:18.1]} 11... Bd6 {[%clk 0:02:19.8]} 12. f5 {[%clk 0:01:54.7]} 12... Qe7
{[%clk 0:02:17.5]} 13. Nd2 {[%clk 0:01:47.3]} 13... gxf5 {[%clk 0:02:02.2]} 14.
Rxf5 {[%clk 0:01:44]} 14... Rg8 {[%clk 0:01:59.2]} 15. Qf2 {[%clk 0:01:34.5]}
15... O-O-O {[%clk 0:01:56.4]} 16. Nc4 {[%clk 0:01:33.9]} 16... Bc7 {[%clk
0:01:56.6]} 17. Bd2 {[%clk 0:01:17.7]} 17... Rg6 {[%clk 0:01:54]} 18. b4 {[%clk
0:00:34.6]} 18... Rdg8 {[%clk 0:01:51.2]} 19. Bf1 {[%clk 0:00:35.2]} 19... Qe6
{[%clk 0:01:11]} 20. a4 {[%clk 0:00:33.4]} 20... Rg3 {[%clk 0:00:58]} 21. Kh1
{[%clk 0:00:29.1]} 21... h5 {[%clk 0:00:54.3]} 22. b5 {[%clk 0:00:20.6]} 22...
c5 {[%clk 0:00:53.9]} 23. a5 {[%clk 0:00:20.8]} 23... Bb8 {[%clk 0:00:53.3]} 24.
Be1 {[%clk 0:00:19.2]} 24... h4 {[%clk 0:00:51.9]} 25. Qd2 {[%clk 0:00:18.8]}
25... Nd5 {[%clk 0:00:31.7]} 26. Bxg3 {[%clk 0:00:17.3]} 26... Rxg3 {[%clk
0:00:30.7]} 27. Rg5 {[%clk 0:00:07]} 27... Nf4 {[%clk 0:00:25.2]} 28. Rxg3
{[%clk 0:00:06.4]} 28... hxg3 {[%clk 0:00:25.1]} 29. Qd1 {[%clk 0:00:07.3]}
29... Nf6 {[%clk 0:00:23.2]} 30. Qf3 {[%clk 0:00:07]} 30... N6h5 {[%clk
0:00:21.7]} 31. a6 {[%clk 0:00:04.7]} 31... b6 {[%clk 0:00:21.1]} 32. Be2 {[%clk
0:00:05]} 32... Qg6 {[%clk 0:00:16.8]} 33. Qg4+ {[%clk 0:00:05]} 33... Kd8
{[%clk 0:00:16]} 34. Qxg6 {[%clk 0:00:03.8]} 34... fxg6 {[%clk 0:00:15.4]} 35.
Bxh5 {[%clk 0:00:04.3]} 35... gxh5 {[%clk 0:00:15.3]} 36. Nxb6 {[%clk
0:00:04.9]} 36... axb6 {[%clk 0:00:13.3]} 37. a7 {[%clk 0:00:05.8]} 37... Bxa7
{[%clk 0:00:13.6]} 38. Rxa7 {[%clk 0:00:06.7]} 38... c4 {[%clk 0:00:13.5]} 39.
dxc4 {[%clk 0:00:06.5]} 39... d3 {[%clk 0:00:13]} 40. cxd3 {[%clk 0:00:06.5]}
40... Nxd3 {[%clk 0:00:13.9]} 41. Rh7 {[%clk 0:00:05.7]} 41... Nf2+ {[%clk
0:00:14]} 42. Kg1 {[%clk 0:00:05.8]} 42... Nxe4 {[%clk 0:00:14.3]} 43. Rxh5
{[%clk 0:00:06]} 43... Nd2 {[%clk 0:00:14.1]} 44. Rxe5 {[%clk 0:00:06]} 44...
Nxc4 {[%clk 0:00:14.3]} 45. Rg5 {[%clk 0:00:06.2]} 45... Kd7 {[%clk 0:00:09.6]}
46. Rxg3 {[%clk 0:00:05.7]} 46... Kd6 {[%clk 0:00:10]} 47. h4 {[%clk 0:00:06.1]}
47... Kc5 {[%clk 0:00:09.9]} 48. Rg5+ {[%clk 0:00:06.1]} 48... Kb4 {[%clk
0:00:09.8]} 49. h5 {[%clk 0:00:07]} 49... Nd6 {[%clk 0:00:09.6]} 50. h6 {[%clk
0:00:07]} 50... Nf7 {[%clk 0:00:09.7]} 51. Rh5 {[%clk 0:00:07.6]} 51... Nxh6
{[%clk 0:00:09.4]} 52. Rxh6 {[%clk 0:00:08]} 52... Kxb5 {[%clk 0:00:09.7]} 53.
g4 {[%clk 0:00:08.6]} 53... Kc5 {[%clk 0:00:09.8]} 54. g5 {[%clk 0:00:08.6]}
54... b5 {[%clk 0:00:10.4]} 55. g6 {[%clk 0:00:08.8]} 55... b4 {[%clk
0:00:09.4]} 56. g7 {[%clk 0:00:09.2]} 56... b3 {[%clk 0:00:09.4]} 57. g8=Q
{[%clk 0:00:09.6]} 57... b2 {[%clk 0:00:09.7]} 58. Qc8+ {[%clk 0:00:10]} 58...
Kd4 {[%clk 0:00:09.3]} 59. Rd6+ {[%clk 0:00:09.6]} 1-0

[Event "*** SCC Grand Prix: Titled Tuesday Blitz"]
[Site "Chess.com"]
[Date "2020.06.09"]
[Round "9"]
[White "Flawless_Fighter"]
[Black "louis198"]
[Result "0-1"]
[WhiteElo "2602"]
[BlackElo "2477"]
[TimeControl "180+1"]
[EndTime "10:47:22 PDT"]
[Termination "louis198 won by checkmate"]

1. e4 {[%clk 0:03:00.9]} 1... e6 {[%clk 0:02:59.6]} 2. d4 {[%clk 0:03:00.5]}
2... d5 {[%clk 0:02:59.2]} 3. Nd2 {[%clk 0:03:01.1]} 3... Nc6 {[%clk 0:02:58.5]}
4. Ngf3 {[%clk 0:02:59.1]} 4... Nf6 {[%clk 0:02:58]} 5. e5 {[%clk 0:02:58.8]}
5... Nd7 {[%clk 0:02:58.3]} 6. Be2 {[%clk 0:02:52.2]} 6... f6 {[%clk 0:02:56.3]}
7. exf6 {[%clk 0:02:51.5]} 7... Qxf6 {[%clk 0:02:55.8]} 8. Nf1 {[%clk
0:02:50.7]} 8... Bd6 {[%clk 0:02:55.3]} 9. Ne3 {[%clk 0:02:50.9]} 9... O-O
{[%clk 0:02:54]} 10. Ng4 {[%clk 0:02:39.8]} 10... Qg6 {[%clk 0:02:48.8]} 11. h3
{[%clk 0:02:34.1]} 11... Nb4 {[%clk 0:02:31.1]} 12. Ne3 {[%clk 0:02:31.1]} 12...
c5 {[%clk 0:02:25.8]} 13. c3 {[%clk 0:02:26.7]} 13... Nc6 {[%clk 0:02:24.7]} 14.
O-O {[%clk 0:02:15.9]} 14... Nf6 {[%clk 0:01:42.1]} 15. c4 {[%clk 0:01:54.3]}
15... cxd4 {[%clk 0:01:36.6]} 16. Nxd4 {[%clk 0:01:52.8]} 16... Nxd4 {[%clk
0:01:36.8]} 17. Qxd4 {[%clk 0:01:53.4]} 17... e5 {[%clk 0:01:36.1]} 18. Qh4
{[%clk 0:01:47.5]} 18... d4 {[%clk 0:01:34.5]} 19. Nd5 {[%clk 0:01:41.5]} 19...
Nxd5 {[%clk 0:00:56.6]} 20. cxd5 {[%clk 0:01:41.1]} 20... h6 {[%clk 0:00:55.9]}
21. Bh5 {[%clk 0:01:30]} 21... Qf6 {[%clk 0:00:39.6]} 22. Qxf6 {[%clk
0:01:28.9]} 22... Rxf6 {[%clk 0:00:38.5]} 23. Bd2 {[%clk 0:01:25.3]} 23... Bf5
{[%clk 0:00:35.9]} 24. Rac1 {[%clk 0:01:25]} 24... Be4 {[%clk 0:00:32.8]} 25. f4
{[%clk 0:01:06.7]} 25... exf4 {[%clk 0:00:28.8]} 26. Bf3 {[%clk 0:01:07.3]}
26... Bxf3 {[%clk 0:00:27.3]} 27. Rxf3 {[%clk 0:01:08.2]} 27... Rf5 {[%clk
0:00:27.2]} 28. Rb3 {[%clk 0:01:05.1]} 28... b6 {[%clk 0:00:25.3]} 29. Rb5
{[%clk 0:01:01.8]} 29... Re8 {[%clk 0:00:13.9]} 30. Rc6 {[%clk 0:00:54.7]} 30...
Bf8 {[%clk 0:00:14]} 31. Kf2 {[%clk 0:00:42.7]} 31... Rd8 {[%clk 0:00:08.9]} 32.
Rc7 {[%clk 0:00:38.1]} 32... Rdxd5 {[%clk 0:00:07.3]} 33. Rxd5 {[%clk 0:00:39]}
33... Rxd5 {[%clk 0:00:07.5]} 34. Rxa7 {[%clk 0:00:39.6]} 34... g5 {[%clk
0:00:06.9]} 35. Kf3 {[%clk 0:00:37.9]} 35... Bc5 {[%clk 0:00:06.4]} 36. b4
{[%clk 0:00:36.8]} 36... Bf8 {[%clk 0:00:05.4]} 37. Rb7 {[%clk 0:00:36.3]} 37...
Re5 {[%clk 0:00:04.5]} 38. Rxb6 {[%clk 0:00:30.6]} 38... h5 {[%clk 0:00:03.7]}
39. h4 {[%clk 0:00:23]} 39... g4+ {[%clk 0:00:02.3]} 40. Kxf4 {[%clk 0:00:22.1]}
40... Re2 {[%clk 0:00:03]} 41. Bc1 {[%clk 0:00:19.5]} 41... Rxg2 {[%clk
0:00:03]} 42. Kg5 {[%clk 0:00:19.1]} 42... g3 {[%clk 0:00:01.9]} 43. Kxh5 {[%clk
0:00:15.7]} 43... Rg1 {[%clk 0:00:02.4]} 44. Bf4 {[%clk 0:00:12]} 44... Kf7
{[%clk 0:00:02.7]} 45. Rb7+ {[%clk 0:00:11.2]} 45... Ke6 {[%clk 0:00:02.6]} 46.
Rb8 {[%clk 0:00:09.9]} 46... Be7 {[%clk 0:00:02.7]} 47. Rg8 {[%clk 0:00:06.9]}
47... g2 {[%clk 0:00:03.6]} 48. Bh2 {[%clk 0:00:07.2]} 48... d3 {[%clk 0:00:04]}
49. Bxg1 {[%clk 0:00:06.6]} 49... d2 {[%clk 0:00:04.9]} 50. Rg6+ {[%clk
0:00:04.9]} 50... Bf6 {[%clk 0:00:04.5]} 51. Bd4 {[%clk 0:00:04]} 51... d1=Q+
{[%clk 0:00:04.6]} 52. Kh6 {[%clk 0:00:03.5]} 52... Qxd4 {[%clk 0:00:05.5]} 53.
Rxg2 {[%clk 0:00:03.4]} 53... Qxh4+ {[%clk 0:00:05.6]} 54. Kg6 {[%clk
0:00:03.7]} 54... Qe4+ {[%clk 0:00:06.2]} 55. Kh6 {[%clk 0:00:04.1]} 55... Qxg2
{[%clk 0:00:07.1]} 56. Kh5 {[%clk 0:00:03.6]} 56... Qg5# {[%clk 0:00:07.7]} 0-1

[Event "*** SCC Grand Prix: Titled Tuesday Blitz"]
[Site "Chess.com"]
[Date "2020.06.09"]
[Round "9"]
[White "Generalas"]
[Black "korbul"]
[Result "1-0"]
[WhiteElo "2392"]
[BlackElo "2488"]
[TimeControl "180+1"]
[EndTime "10:47:22 PDT"]
[Termination "Generalas won by resignation"]

1. e4 {[%clk 0:03:00.9]} 1... c5 {[%clk 0:02:59.6]} 2. c3 {[%clk 0:03:00.8]}
2... Nf6 {[%clk 0:02:58.5]} 3. e5 {[%clk 0:03:00.7]} 3... Nd5 {[%clk 0:02:58.7]}
4. Nf3 {[%clk 0:03:01.4]} 4... e6 {[%clk 0:02:58]} 5. Bc4 {[%clk 0:03:01.3]}
5... d6 {[%clk 0:02:56.2]} 6. O-O {[%clk 0:03:00.7]} 6... Nc6 {[%clk 0:02:55.8]}
7. d4 {[%clk 0:02:57.8]} 7... cxd4 {[%clk 0:02:55.4]} 8. cxd4 {[%clk 0:02:57.5]}
8... Be7 {[%clk 0:02:55.4]} 9. Qe2 {[%clk 0:02:54.8]} 9... a6 {[%clk 0:02:54.6]}
10. a3 {[%clk 0:02:35.2]} 10... b5 {[%clk 0:02:49.2]} 11. Ba2 {[%clk 0:02:34]}
11... O-O {[%clk 0:02:48]} 12. Nbd2 {[%clk 0:02:28.8]} 12... dxe5 {[%clk
0:02:46.5]} 13. dxe5 {[%clk 0:02:28]} 13... Nf4 {[%clk 0:02:44.2]} 14. Qe4
{[%clk 0:02:27.4]} 14... Nd5 {[%clk 0:02:39.8]} 15. Qg4 {[%clk 0:02:21.6]} 15...
Bb7 {[%clk 0:02:32.9]} 16. Ne4 {[%clk 0:02:20.7]} 16... Qc7 {[%clk 0:02:19.8]}
17. Bh6 {[%clk 0:02:17]} 17... g6 {[%clk 0:02:18.1]} 18. Bxf8 {[%clk 0:02:14.4]}
18... Rxf8 {[%clk 0:02:15.2]} 19. Rac1 {[%clk 0:02:06]} 19... Qd8 {[%clk
0:02:01.8]} 20. Rfd1 {[%clk 0:02:03]} 20... Kg7 {[%clk 0:01:54.4]} 21. h4 {[%clk
0:01:33.1]} 21... h5 {[%clk 0:01:50.4]} 22. Qg3 {[%clk 0:01:33]} 22... Na5
{[%clk 0:01:39.1]} 23. Nd6 {[%clk 0:01:19.5]} 23... Bxd6 {[%clk 0:01:22.2]} 24.
exd6 {[%clk 0:01:20.4]} 24... Qf6 {[%clk 0:01:22.1]} 25. Ne5 {[%clk 0:01:19.3]}
25... Rd8 {[%clk 0:01:19.2]} 26. d7 {[%clk 0:01:09.1]} 26... Nf4 {[%clk
0:01:12.2]} 27. Re1 {[%clk 0:00:57.8]} 27... Nxg2 {[%clk 0:00:56.1]} 28. Nxf7
{[%clk 0:00:52.2]} 28... Qxf7 {[%clk 0:00:44.2]} 29. Bxe6 {[%clk 0:00:45]} 29...
Qf6 {[%clk 0:00:39.1]} 30. Re5 {[%clk 0:00:35.1]} 30... Nxh4 {[%clk 0:00:37.9]}
31. Kf1 {[%clk 0:00:19.1]} 31... Nf3 {[%clk 0:00:31.3]} 32. Re3 {[%clk
0:00:18.9]} 32... Ng5 {[%clk 0:00:30]} 33. Qc7 {[%clk 0:00:16.7]} 33... Nxe6
{[%clk 0:00:24.4]} 34. Rxe6 {[%clk 0:00:16.3]} 34... Qg5 {[%clk 0:00:20.1]} 35.
Rce1 {[%clk 0:00:07.5]} 35... Qg2+ {[%clk 0:00:19]} 36. Ke2 {[%clk 0:00:07.5]}
36... Qg4+ {[%clk 0:00:18]} 37. Kd3 {[%clk 0:00:04]} 37... Nc4 {[%clk
0:00:16.6]} 38. Re7+ {[%clk 0:00:02.9]} 38... Kh6 {[%clk 0:00:16.1]} 39. Qxd8
{[%clk 0:00:02.3]} 39... Qf5+ {[%clk 0:00:16]} 40. Kc3 {[%clk 0:00:02.5]} 40...
Qf6+ {[%clk 0:00:15.3]} 41. Kb4 {[%clk 0:00:02.7]} 41... Ne5 {[%clk 0:00:14.8]}
42. Kc5 {[%clk 0:00:02.3]} 42... Nc6 {[%clk 0:00:14.2]} 43. Rh7+ {[%clk
0:00:01.7]} 43... Kg5 {[%clk 0:00:14.3]} 44. Qxf6+ {[%clk 0:00:02.5]} 44... Kxf6
{[%clk 0:00:15]} 45. d8=Q+ {[%clk 0:00:02.7]} 45... Nxd8 {[%clk 0:00:15.2]} 46.
Rd7 {[%clk 0:00:03.5]} 46... Ne6+ {[%clk 0:00:15.5]} 47. Kb6 {[%clk 0:00:04]}
47... Bd5 {[%clk 0:00:15.5]} 48. Rxd5 {[%clk 0:00:03]} 48... Nf4 {[%clk
0:00:15.8]} 49. Rd6+ {[%clk 0:00:03.6]} 49... Kf5 {[%clk 0:00:16.2]} 50. Rc6
{[%clk 0:00:04.2]} 50... g5 {[%clk 0:00:17.1]} 51. Kxa6 {[%clk 0:00:04.6]} 51...
h4 {[%clk 0:00:16.6]} 52. Rc5+ {[%clk 0:00:05.3]} 52... Kg4 {[%clk 0:00:16.7]}
53. Rxb5 {[%clk 0:00:05.9]} 53... h3 {[%clk 0:00:16.7]} 54. Rg1+ {[%clk
0:00:06.6]} 54... Ng2 {[%clk 0:00:16.9]} 55. Rb3 {[%clk 0:00:05.6]} 55... Kh4
{[%clk 0:00:16.5]} 56. Rg3 {[%clk 0:00:04.9]} 56... g4 {[%clk 0:00:15.7]} 57.
R3xg2 {[%clk 0:00:05]} 57... h2 {[%clk 0:00:16.3]} 58. Rh1 {[%clk 0:00:04.8]}
58... Kg5 {[%clk 0:00:16.9]} 59. Rhxh2 {[%clk 0:00:05.4]} 59... Kf4 {[%clk
0:00:17.8]} 60. Rg3 {[%clk 0:00:06]} 1-0

[Event "*** SCC Grand Prix: Titled Tuesday Blitz"]
[Site "Chess.com"]
[Date "2020.06.09"]
[Round "9"]
[White "biaf13"]
[Black "Ceejay271"]
[Result "1/2-1/2"]
[WhiteElo "2080"]
[BlackElo "2383"]
[TimeControl "180+1"]
[EndTime "10:47:24 PDT"]
[Termination "Game drawn by agreement"]

1. e4 {[%clk 0:03:00.9]} 1... c5 {[%clk 0:02:59.1]} 2. Nf3 {[%clk 0:03:00.2]}
2... Nc6 {[%clk 0:02:59]} 3. d4 {[%clk 0:02:58.6]} 3... cxd4 {[%clk 0:02:59.9]}
4. Nxd4 {[%clk 0:02:59.1]} 4... g6 {[%clk 0:03:00.4]} 5. Nc3 {[%clk 0:02:58.3]}
5... Bg7 {[%clk 0:03:00.9]} 6. Be3 {[%clk 0:02:59]} 6... Nf6 {[%clk 0:03:01.2]}
7. Bc4 {[%clk 0:02:57.2]} 7... O-O {[%clk 0:03:01]} 8. Bb3 {[%clk 0:02:56.5]}
8... Re8 {[%clk 0:03:00.9]} 9. f3 {[%clk 0:02:51.8]} 9... e6 {[%clk 0:03:00.4]}
10. Nxc6 {[%clk 0:02:39.4]} 10... dxc6 {[%clk 0:02:54.3]} 11. Qxd8 {[%clk
0:02:34]} 11... Rxd8 {[%clk 0:02:55.2]} 12. Rd1 {[%clk 0:02:32.9]} 12... Rxd1+
{[%clk 0:02:52.4]} 13. Kxd1 {[%clk 0:02:33.8]} 13... b5 {[%clk 0:02:51.9]} 14.
e5 {[%clk 0:02:33]} 14... Nd7 {[%clk 0:02:48.1]} 15. f4 {[%clk 0:02:33.2]} 15...
a5 {[%clk 0:02:47.8]} 16. a4 {[%clk 0:02:32.3]} 16... b4 {[%clk 0:02:45.6]} 17.
Ne4 {[%clk 0:02:31.4]} 17... Ba6 {[%clk 0:02:41.8]} 18. Nd6 {[%clk 0:02:29.3]}
18... f6 {[%clk 0:02:30.3]} 19. exf6 {[%clk 0:02:26.8]} 19... Bxf6 {[%clk
0:02:29.5]} 20. Bxe6+ {[%clk 0:02:26.8]} 20... Kg7 {[%clk 0:02:26.1]} 21. Bxd7
{[%clk 0:02:24.6]} 21... Rd8 {[%clk 0:02:25.2]} 22. Ne8+ {[%clk 0:02:12.4]}
22... Kf7 {[%clk 0:02:24.6]} 23. Nxf6 {[%clk 0:02:05.1]} 23... Kxf6 {[%clk
0:02:24.4]} 24. Bd4+ {[%clk 0:02:04.4]} 24... Kf7 {[%clk 0:02:20.9]} 25. Kc1
{[%clk 0:01:42.5]} 25... Rxd7 {[%clk 0:02:20.2]} 26. Be5 {[%clk 0:01:34.8]}
26... Bc4 {[%clk 0:02:11.7]} 27. Rd1 {[%clk 0:01:30.3]} 27... Bd5 {[%clk
0:02:10.1]} 28. g3 {[%clk 0:01:29.8]} 28... Ke6 {[%clk 0:02:07.4]} 29. Re1
{[%clk 0:01:27.7]} 29... Kf5 {[%clk 0:02:06.2]} 30. h3 {[%clk 0:01:17.7]} 30...
h5 {[%clk 0:02:05.3]} 31. Re3 {[%clk 0:01:15.4]} 31... Bg2 {[%clk 0:02:00.7]}
32. h4 {[%clk 0:01:00.9]} 32... c5 {[%clk 0:02:00.3]} 33. c3 {[%clk 0:00:50.3]}
33... Bc6 {[%clk 0:01:54.4]} 34. b3 {[%clk 0:00:48]} 34... c4 {[%clk 0:01:43]}
35. cxb4 {[%clk 0:00:40.7]} 35... axb4 {[%clk 0:01:40.1]} 36. bxc4 {[%clk
0:00:30.3]} 36... Bxa4 {[%clk 0:01:39.7]} 37. c5 {[%clk 0:00:19.2]} 37... Rd1+
{[%clk 0:01:38.5]} 38. Kb2 {[%clk 0:00:19.4]} 38... Rd2+ {[%clk 0:01:38.5]} 39.
Kc1 {[%clk 0:00:19.5]} 39... Rc2+ {[%clk 0:01:37.4]} 40. Kb1 {[%clk 0:00:19.9]}
40... Rxc5 {[%clk 0:01:37.2]} 41. Bd4 {[%clk 0:00:17.2]} 41... Rc4 {[%clk
0:01:35]} 42. Be5 {[%clk 0:00:16.7]} 42... Kg4 {[%clk 0:01:27.1]} 43. Kb2 {[%clk
0:00:16.6]} 43... Rc8 {[%clk 0:01:22.8]} 44. Bd6 {[%clk 0:00:15.8]} 44... Rc4
{[%clk 0:01:21.8]} 45. Be5 {[%clk 0:00:15.7]} 45... Bc6 {[%clk 0:01:08]} 46. Bf6
{[%clk 0:00:15.4]} 46... Be4 {[%clk 0:01:04.4]} 47. Bg5 {[%clk 0:00:13.9]} 47...
Bd5 {[%clk 0:01:00.3]} 48. Re5 {[%clk 0:00:12.6]} 48... Rd4 {[%clk 0:00:56.8]}
49. Bf6 {[%clk 0:00:11.1]} 49... Rd2+ {[%clk 0:00:48.7]} 50. Kc1 {[%clk
0:00:11.4]} 50... Rd3 {[%clk 0:00:48.3]} 51. Kc2 {[%clk 0:00:11.3]} 51... Bc4
{[%clk 0:00:44.7]} 52. Rg5+ {[%clk 0:00:09.8]} 52... Kf3 {[%clk 0:00:44.1]} 53.
Rc5 {[%clk 0:00:09.9]} 53... b3+ {[%clk 0:00:41.5]} 54. Kb2 {[%clk 0:00:09.7]}
54... Be6 {[%clk 0:00:39.5]} 55. Rc3 {[%clk 0:00:07.9]} 55... Rxc3 {[%clk
0:00:38.9]} 56. Kxc3 {[%clk 0:00:08.8]} 56... Kxg3 {[%clk 0:00:39.4]} 57. Bg5
{[%clk 0:00:09.5]} 57... Kf3 {[%clk 0:00:38.9]} 58. Kb2 {[%clk 0:00:10.1]} 58...
Ke4 {[%clk 0:00:38.8]} 59. Bh6 {[%clk 0:00:10.1]} 59... Kd3 {[%clk 0:00:37.3]}
60. Bg5 {[%clk 0:00:11]} 60... Kc4 {[%clk 0:00:37.4]} 61. Bh6 {[%clk 0:00:11.6]}
61... Bf5 {[%clk 0:00:37.8]} 62. Bg5 {[%clk 0:00:12.5]} 62... Bc2 {[%clk
0:00:37.7]} 63. Bh6 {[%clk 0:00:13.4]} 63... Kd5 {[%clk 0:00:38]} 64. Bg5 {[%clk
0:00:14.3]} 64... Ke6 {[%clk 0:00:37.7]} 65. Bh6 {[%clk 0:00:15.2]} 65... Kf5
{[%clk 0:00:38.4]} 66. Bg5 {[%clk 0:00:16.1]} 66... Kg4 {[%clk 0:00:38.5]} 67.
Kc1 {[%clk 0:00:16.2]} 67... Be4 {[%clk 0:00:37.4]} 68. Kb2 {[%clk 0:00:17.1]}
68... Bd5 {[%clk 0:00:37.8]} 69. Kc1 {[%clk 0:00:18]} 69... Kf5 {[%clk
0:00:37.6]} 70. Kb2 {[%clk 0:00:18.9]} 70... Ke4 {[%clk 0:00:37.6]} 71. Kc1
{[%clk 0:00:19.8]} 71... Kf3 {[%clk 0:00:36.9]} 72. Kb2 {[%clk 0:00:20.7]} 72...
Ke2 {[%clk 0:00:37]} 73. Bh6 {[%clk 0:00:21.6]} 73... Kd3 {[%clk 0:00:37.7]} 74.
Bg5 {[%clk 0:00:22.5]} 74... Ke2 {[%clk 0:00:38]} 75. Bh6 {[%clk 0:00:23.4]}
75... Kd1 {[%clk 0:00:37.6]} 76. Bg5 {[%clk 0:00:24.3]} 76... Kd2 {[%clk
0:00:37.7]} 77. Bh6 {[%clk 0:00:24.7]} 77... Kd3 {[%clk 0:00:37.5]} 78. Bg5
{[%clk 0:00:24.4]} 78... Ke4 {[%clk 0:00:37.9]} 79. Bh6 {[%clk 0:00:24.5]} 79...
Kf5 {[%clk 0:00:37.6]} 80. Bg5 {[%clk 0:00:25.1]} 80... Kg4 {[%clk 0:00:37.9]}
81. Kb1 {[%clk 0:00:24.5]} 81... Kf5 {[%clk 0:00:36.6]} 1/2-1/2

[Event "*** SCC Grand Prix: Titled Tuesday Blitz"]
[Site "Chess.com"]
[Date "2020.06.09"]
[Round "9"]
[White "rpragchess"]
[Black "Gabrielian_Artur"]
[Result "1-0"]
[WhiteElo "2847"]
[BlackElo "2746"]
[TimeControl "180+1"]
[EndTime "10:47:29 PDT"]
[Termination "rpragchess won by checkmate"]

1. Nf3 {[%clk 0:03:00.9]} 1... Nf6 {[%clk 0:02:59.4]} 2. b3 {[%clk 0:02:58.7]}
2... g6 {[%clk 0:02:59.5]} 3. Bb2 {[%clk 0:02:58.5]} 3... Bg7 {[%clk 0:03:00]}
4. g3 {[%clk 0:02:55.5]} 4... O-O {[%clk 0:02:59.6]} 5. c4 {[%clk 0:02:54.4]}
5... d6 {[%clk 0:02:59.5]} 6. d3 {[%clk 0:02:53.3]} 6... e5 {[%clk 0:02:58.1]}
7. Nbd2 {[%clk 0:02:49.1]} 7... c5 {[%clk 0:02:34.9]} 8. Bg2 {[%clk 0:02:46.9]}
8... Nc6 {[%clk 0:02:35.3]} 9. O-O {[%clk 0:02:41.3]} 9... Re8 {[%clk
0:02:35.4]} 10. Rc1 {[%clk 0:02:38.9]} 10... h6 {[%clk 0:02:27]} 11. a3 {[%clk
0:02:37.2]} 11... a5 {[%clk 0:02:26.5]} 12. e3 {[%clk 0:02:29.8]} 12... Be6
{[%clk 0:02:17.2]} 13. Qe2 {[%clk 0:02:27.1]} 13... Qd7 {[%clk 0:02:15.1]} 14.
Rfd1 {[%clk 0:02:19.7]} 14... a4 {[%clk 0:02:08.1]} 15. b4 {[%clk 0:01:45.1]}
15... cxb4 {[%clk 0:02:05.4]} 16. axb4 {[%clk 0:01:46]} 16... Nxb4 {[%clk
0:01:57.1]} 17. Ba3 {[%clk 0:01:45.9]} 17... Nc6 {[%clk 0:01:33.9]} 18. Ne4
{[%clk 0:01:44.8]} 18... Nxe4 {[%clk 0:00:53.3]} 19. dxe4 {[%clk 0:01:45.7]}
19... Na5 {[%clk 0:00:48]} 20. Bxd6 {[%clk 0:01:20.7]} 20... Qc6 {[%clk
0:00:40]} 21. Nxe5 {[%clk 0:01:13.5]} 21... Bxe5 {[%clk 0:00:39.5]} 22. Bxe5
{[%clk 0:01:14.4]} 22... Bxc4 {[%clk 0:00:38.8]} 23. Qb2 {[%clk 0:01:13.8]}
23... a3 {[%clk 0:00:38.8]} 24. Qc3 {[%clk 0:01:13.8]} 24... Rxe5 {[%clk
0:00:35.9]} 25. Qxe5 {[%clk 0:01:12.8]} 25... a2 {[%clk 0:00:35]} 26. Bf1 {[%clk
0:01:06]} 26... Bxf1 {[%clk 0:00:33.3]} 27. Rxc6 {[%clk 0:01:00.8]} 27... Nxc6
{[%clk 0:00:34.2]} 28. Qc3 {[%clk 0:00:43.5]} 28... Bh3 {[%clk 0:00:28.7]} 29.
Ra1 {[%clk 0:00:37.6]} 29... Be6 {[%clk 0:00:27.9]} 30. f4 {[%clk 0:00:37.7]}
30... Rd8 {[%clk 0:00:20.2]} 31. f5 {[%clk 0:00:32.3]} 31... gxf5 {[%clk
0:00:19.3]} 32. exf5 {[%clk 0:00:33.2]} 32... Bd5 {[%clk 0:00:14.6]} 33. e4
{[%clk 0:00:22.4]} 33... Bxe4 {[%clk 0:00:14.8]} 34. Rxa2 {[%clk 0:00:22.8]}
34... Bxf5 {[%clk 0:00:15.2]} 35. Qf6 {[%clk 0:00:19.8]} 35... Bg6 {[%clk
0:00:14.3]} 36. h4 {[%clk 0:00:18.5]} 36... h5 {[%clk 0:00:13.1]} 37. Kh2 {[%clk
0:00:14.6]} 37... Re8 {[%clk 0:00:12.7]} 38. Kh3 {[%clk 0:00:09.9]} 38... Ne5
{[%clk 0:00:11.6]} 39. Re2 {[%clk 0:00:09]} 39... Re6 {[%clk 0:00:08.5]} 40. Qf4
{[%clk 0:00:08]} 40... Ng4 {[%clk 0:00:07.3]} 41. Rxe6 {[%clk 0:00:07.2]} 41...
fxe6 {[%clk 0:00:08.2]} 42. Qb8+ {[%clk 0:00:07.7]} 42... Kg7 {[%clk 0:00:08.6]}
43. Qxb7+ {[%clk 0:00:08.3]} 43... Kf6 {[%clk 0:00:08.9]} 44. Qb2+ {[%clk
0:00:08]} 44... Kf7 {[%clk 0:00:08.7]} 45. Kg2 {[%clk 0:00:08]} 45... Be4+
{[%clk 0:00:08.8]} 46. Kf1 {[%clk 0:00:08.1]} 46... Bg6 {[%clk 0:00:09]} 47.
Qb7+ {[%clk 0:00:07.6]} 47... Kf6 {[%clk 0:00:09.1]} 48. Qb8 {[%clk 0:00:08.3]}
48... e5 {[%clk 0:00:08.7]} 49. Ke2 {[%clk 0:00:08.6]} 49... Ke6 {[%clk
0:00:08.3]} 50. Qb6+ {[%clk 0:00:08.7]} 50... Kf7 {[%clk 0:00:08.4]} 51. Qc7+
{[%clk 0:00:08.5]} 51... Kf6 {[%clk 0:00:08.6]} 52. Qd6+ {[%clk 0:00:08.5]}
52... Kf7 {[%clk 0:00:09.1]} 53. Kd2 {[%clk 0:00:08.5]} 53... Bf5 {[%clk
0:00:09.3]} 54. Kc3 {[%clk 0:00:08.7]} 54... Bg6 {[%clk 0:00:09.4]} 55. Kc4
{[%clk 0:00:08.5]} 55... Bf5 {[%clk 0:00:09.7]} 56. Kc5 {[%clk 0:00:08.7]} 56...
Bg6 {[%clk 0:00:09.4]} 57. Qd7+ {[%clk 0:00:08.9]} 57... Kf6 {[%clk 0:00:09]}
58. Kd6 {[%clk 0:00:09.4]} 58... e4 {[%clk 0:00:05.7]} 59. Qe7+ {[%clk
0:00:09.3]} 59... Kf5 {[%clk 0:00:05.3]} 60. Qg5# {[%clk 0:00:10.2]} 1-0